bitfinex-derivatives/quotes_BTCF0:USTF0_20210102
["timestamp","ask_amount","ask_price","bid_price","bid_amount"]
[1609559715122,0.61885462,29341.0,29340.0,1.03817321]
[1609559716023,0.74583752,29343.0,29340.0,1.21860479]
[1609559716322,0.74583752,29343.0,29341.0,0.03816734]
[1609559718226,0.1116,29346.0,29341.0,0.03816734]
[1609559718829,0.18043158,29349.0,29341.0,0.03816734]
[1609559719627,0.18043158,29349.0,29343.0,4.6138]
[1609559720028,0.18043158,29349.0,29348.0,0.18043158]
[1609559720530,0.18043158,29349.0,29348.0,0.18079433]
[1609559723433,0.18043158,29349.0,29348.0,0.92809433]
[1609559725335,0.30612158,29349.0,29348.0,0.92809433]
[1609559725536,0.30612158,29349.0,29348.0,0.18079433]
[1609559726035,5.30252158,29349.0,29348.0,0.18079433]
[1609559729839,5.30252158,29349.0,29348.0,0.87589433]
[1609559744959,5.30252158,29349.0,29348.0,0.91368789]
[1609559758283,0.30612158,29349.0,29348.0,0.91368789]
[1609559781118,0.12569,29349.0,29348.0,0.03815631]
[1609559781521,0.18043158,29349.0,29348.0,0.18043158]
[1609559782022,0.18043158,29349.0,29348.0,0.21896848]
[1609559786729,0.18043158,29349.0,29348.0,5.77286848]
[1609559786928,0.18043158,29349.0,29348.0,5.73433158]
[1609559787129,0.18043158,29349.0,29348.0,5.77286827]
[1609559788130,0.17836004,29349.0,29348.0,5.77286827]
[1609559796343,0.14642,29350.0,29348.0,6.77286827]
[1609559796543,1.0,29355.0,29348.0,6.77286827]
[1609559796743,1.0,29355.0,29349.0,0.0385307]
[1609559797746,1.0,29355.0,29354.0,0.18043158]
[1609559797946,0.62115189,29356.0,29354.0,0.78553158]
[1609559798144,0.62115189,29356.0,29354.0,0.82406028]
[1609559798345,0.62115189,29356.0,29355.0,0.00036345]
[1609559798647,1.09141692,29359.0,29355.0,0.00036345]
[1609559798648,0.80149928,29359.0,29355.0,0.00036345]
[1609559799047,0.00041483,29356.0,29355.0,0.00036345]
[1609559799449,0.00041483,29358.0,29355.0,0.00036345]
[1609559799649,0.00041483,29356.0,29355.0,0.00036345]
[1609559799850,0.00041483,29357.0,29355.0,0.00036345]
[1609559800248,0.00041483,29356.0,29355.0,0.00036345]
[1609559800456,0.00041483,29358.0,29354.0,0.03852986]
[1609559800653,0.18043158,29359.0,29355.0,0.00036345]
[1609559800654,0.00041483,29356.0,29355.0,0.00036345]
[1609559800848,0.00041483,29357.0,29355.0,0.00036345]
[1609559801150,0.00041483,29356.0,29354.0,0.00036345]
[1609559801550,0.00041483,29356.0,29353.0,4.2709]
[1609559801749,0.18043158,29359.0,29355.0,0.18043158]
[1609559801750,0.00041483,29358.0,29355.0,0.18043158]
[1609559801950,0.18043158,29359.0,29355.0,0.18043158]
[1609559802250,0.00041484,29357.0,29356.0,0.00036346]
[1609559802449,0.00041484,29358.0,29356.0,0.00036346]
[1609559802849,0.18043158,29359.0,29356.0,0.00036346]
[1609559803752,0.00041487,29358.0,29356.0,0.00036346]
[1609559803952,1.0,29357.0,29356.0,0.00036346]
[1609559806154,6.2901,29357.0,29356.0,0.00036346]
[1609559806454,6.2901,29357.0,29355.0,0.18043158]
[1609559806656,1.0,29357.0,29356.0,0.00036349]
[1609559808260,5.3737,29357.0,29356.0,0.00036349]
[1609559811865,4.3737,29357.0,29356.0,0.00036349]
[1609559814467,4.3737,29357.0,29356.0,1.00036349]
[1609559821175,0.18043158,29359.0,29356.0,1.61216349]
[1609559821374,0.18043158,29359.0,29356.0,1.00036349]
[1609559821574,0.18043158,29359.0,29357.0,0.03853061]
[1609559821975,0.18043158,29359.0,29358.0,0.18043158]
[1609559822174,0.18043158,29359.0,29358.0,1.18043158]
[1609559822374,0.18043158,29359.0,29358.0,1.18079501]
[1609559823177,0.18043158,29359.0,29358.0,0.18079501]
[1609559823578,0.18043158,29359.0,29358.0,4.46069501]
[1609559839300,0.18043158,29359.0,29358.0,0.18079501]
[1609559839898,0.18043158,29359.0,29358.0,0.21895644]
[1609559841597,0.18043158,29359.0,29358.0,4.68785644]
[1609559845103,0.18043158,29359.0,29358.0,4.64969501]
[1609559845401,0.18043158,29359.0,29358.0,4.688126]
[1609559847908,1.18043158,29359.0,29358.0,4.688126]
[1609559848405,1.18043158,29359.0,29358.0,0.219226]
[1609559848606,6.08733158,29359.0,29358.0,0.219226]
[1609559849906,5.08733158,29359.0,29358.0,0.219226]
[1609559850108,6.08733158,29359.0,29358.0,0.219226]
[1609559855315,6.0852607,29359.0,29358.0,0.219226]
[1609559867734,6.08318983,29359.0,29358.0,0.219226]
[1609559867933,5.08318983,29359.0,29358.0,0.219226]
[1609559877947,6.08318983,29359.0,29358.0,0.219226]
[1609559883763,6.08111897,29359.0,29358.0,0.219226]
[1609559883962,5.08111897,29359.0,29358.0,0.219226]
[1609559884462,5.08111897,29359.0,29358.0,0.990026]
[1609559889973,6.08111897,29359.0,29358.0,0.990026]
[1609559912202,6.08111897,29359.0,29358.0,0.80959442]
[1609559913705,6.08111897,29359.0,29358.0,0.03879442]
[1609559914206,6.08111897,29359.0,29353.0,0.03879623]
[1609559914605,6.08153378,29359.0,29358.0,0.00036403]
[1609559914805,0.00041481,29358.0,29354.0,0.03879685]
[1609559915005,6.08153378,29359.0,29358.0,0.00036403]
[1609559915307,6.08111897,29359.0,29355.0,0.03879765]
[1609559915505,6.0815338,29359.0,29358.0,0.00036405]
[1609559915805,0.00041483,29358.0,29356.0,0.00036405]
[1609559916005,6.0815338,29359.0,29358.0,0.00036405]
[1609559916305,6.08111897,29359.0,29357.0,0.00036405]
[1609559916606,6.0815338,29359.0,29358.0,0.00036405]
[1609559916806,6.0815338,29359.0,29352.0,0.03879841]
[1609559917106,6.0815338,29359.0,29358.0,0.00036405]
[1609559917306,6.0815338,29359.0,29352.0,0.03879841]
[1609559917606,6.0815338,29359.0,29358.0,0.00036405]
[1609559917907,0.00041483,29358.0,29353.0,0.00036405]
[1609559918107,0.00041483,29358.0,29352.0,0.03879841]
[1609559918507,4.9069,29359.0,29354.0,0.00036405]
[1609559918707,4.9069,29359.0,29353.0,0.00036405]
[1609559918907,0.18043158,29354.0,29352.0,0.03843436]
[1609559919107,0.97573158,29354.0,29352.0,0.03843436]
[1609559919307,0.97573158,29354.0,29353.0,0.00036405]
[1609559919507,0.7953,29354.0,29352.0,0.03879841]
[1609559919708,0.7953,29354.0,29353.0,0.00036405]
[1609559920210,0.7953,29354.0,29352.0,0.03879841]
[1609559920512,0.79322885,29354.0,29353.0,0.00036405]
[1609559920709,0.79322885,29354.0,29350.0,0.0387987]
[1609559920911,0.18043158,29351.0,29350.0,0.0387987]
[1609559921112,0.18043158,29351.0,29349.0,5.87201091]
[1609559921512,0.18043158,29351.0,29350.0,0.03879897]
[1609559922013,1.18043158,29351.0,29350.0,0.03879897]
[1609559922212,1.73793158,29351.0,29350.0,0.03879897]
[1609559923914,1.73793158,29351.0,29350.0,0.03843492]
[1609559924113,1.73793158,29351.0,29350.0,0.03879897]
[1609559924815,1.73793158,29351.0,29349.0,0.03879886]
[1609559925015,1.73793158,29351.0,29350.0,0.03879892]
[1609559925415,1.73793158,29351.0,29349.0,0.03879888]
[1609559925615,1.18043158,29351.0,29349.0,0.03879888]
[1609559925817,1.18043158,29351.0,29350.0,0.03879888]
[1609559926015,1.18043158,29351.0,29349.0,5.4953]
[1609559926215,1.18043158,29351.0,29350.0,0.03879886]
[1609559926516,1.18043158,29351.0,29350.0,0.07759795]
[1609559928016,0.18043158,29351.0,29350.0,0.07759795]
[1609559928219,0.18043158,29351.0,29350.0,5.44039795]
[1609559928422,0.18043158,29351.0,29350.0,6.44039795]
[1609559928919,0.18043158,29351.0,29350.0,1.07759795]
[1609559931121,0.17836046,29351.0,29350.0,1.07759795]
[1609559932724,0.17836046,29351.0,29350.0,0.07759795]
[1609559935126,0.17836046,29351.0,29350.0,0.0772339]
[1609559935327,0.17836046,29351.0,29350.0,0.03879909]
[1609559937232,0.27926046,29351.0,29350.0,0.14179909]
[1609559937431,0.17836046,29351.0,29350.0,0.03879909]
[1609559938632,0.28116046,29351.0,29350.0,0.14239909]
[1609559939233,0.17836046,29351.0,29350.0,0.03879909]
[1609559939933,1.17836046,29351.0,29350.0,0.03879909]
[1609559940235,1.28206046,29351.0,29350.0,0.14039909]
[1609559941135,1.17836046,29351.0,29350.0,0.03879909]
[1609559941937,0.17836046,29351.0,29350.0,0.03879909]
[1609559942136,0.17836046,29351.0,29350.0,0.14159909]
[1609559942438,0.17836046,29351.0,29350.0,0.21485012]
[1609559943537,0.28016046,29351.0,29350.0,0.21485012]
[1609559943738,0.17836046,29351.0,29350.0,0.11205012]
[1609559944541,0.17628937,29351.0,29350.0,0.11205012]
[1609559944739,0.17628937,29351.0,29350.0,0.21355012]
[1609559944940,0.17628937,29351.0,29350.0,0.11205012]
[1609559945140,0.17628937,29351.0,29350.0,0.03879909]
[1609559945342,0.17628937,29351.0,29350.0,0.11204921]
[1609559956355,0.17628937,29351.0,29350.0,0.03879909]
[1609559958359,0.17421826,29351.0,29350.0,0.03879909]
[1609559963771,0.17421826,29351.0,29350.0,0.11177069]
[1609559963971,0.17421826,29351.0,29350.0,0.03879909]
[1609559964170,0.17421826,29351.0,29350.0,0.11177054]
[1609559964371,4.1074,29353.0,29350.0,0.11177054]
[1609559965674,4.1074,29353.0,29351.0,0.18043158]
[1609559966078,4.1074,29353.0,29352.0,0.03857869]
[1609559967678,4.28783158,29353.0,29352.0,0.03857869]
[1609559971479,4.28576047,29353.0,29352.0,0.03857869]
[1609559975886,0.18043158,29353.0,29352.0,0.03857869]
[1609559976285,0.18043158,29353.0,29352.0,3.87967869]
[1609559982494,0.17836046,29353.0,29352.0,3.87967869]
[1609559986700,0.14193,29354.0,29352.0,3.87967869]
[1609559986900,1.0,29355.0,29352.0,3.87967869]
[1609559987200,1.0,29355.0,29353.0,0.03858263]
[1609559987901,0.18043158,29354.0,29353.0,0.03858263]
[1609559988101,0.29513158,29354.0,29353.0,0.03858263]
[1609559990805,0.29513158,29354.0,29352.0,0.03858246]
[1609559991103,0.29513158,29354.0,29353.0,0.03858284]
[1609559991803,0.29513158,29354.0,29352.0,0.03858288]
[1609559992004,0.29513158,29354.0,29353.0,0.03858293]
[1609559992205,0.29513158,29354.0,29352.0,0.03858293]
[1609559992405,0.29513158,29354.0,29353.0,0.03858291]
[1609559992606,0.29513158,29354.0,29352.0,0.03858286]
[1609559992807,0.1147,29354.0,29352.0,0.03858286]
[1609559993007,0.1147,29354.0,29353.0,0.03858282]
[1609559993411,1.0,29355.0,29350.0,0.11156004]
[1609559993709,1.0,29355.0,29353.0,0.03858272]
[1609559993910,0.18043158,29354.0,29351.0,0.2190145]
[1609559994312,0.32607158,29354.0,29351.0,0.18043158]
[1609559994512,0.32607158,29354.0,29352.0,0.03858286]
[1609559999222,0.32607158,29354.0,29351.0,0.18043158]
[1609559999422,0.32607158,29354.0,29353.0,0.0385824]
[1609559999724,0.32607158,29354.0,29352.0,0.03858247]
[1609559999925,0.32607158,29354.0,29353.0,0.03858293]
[1609560000524,0.32607158,29354.0,29352.0,0.03858285]
[1609560000724,0.32607158,29354.0,29353.0,0.03858251]
[1609560001324,0.32607158,29354.0,29352.0,0.03858251]
[1609560005031,0.32400041,29354.0,29352.0,0.03858251]
[1609560005732,0.14564,29354.0,29352.0,0.03858251]
[1609560006029,0.15871,29354.0,29352.0,0.03858251]
[1609560006629,0.15871,29354.0,29352.0,0.11156126]
[1609560006833,0.15871,29354.0,29353.0,1.0]
[1609560007030,0.15871,29354.0,29353.0,1.03858332]
[1609560011338,0.18043158,29359.0,29353.0,1.03858332]
[1609560011740,0.18043158,29359.0,29354.0,0.03858085]
[1609560012241,0.18043158,29359.0,29358.0,0.18043158]
[1609560012440,0.18043158,29359.0,29358.0,1.18043158]
[1609560012643,0.18043158,29359.0,29358.0,1.21901264]
[1609560013743,0.18043158,29359.0,29358.0,0.21901264]
[1609560014044,0.18043158,29359.0,29358.0,1.21901264]
[1609560016648,0.18043158,29359.0,29358.0,0.21901264]
[1609560016948,0.18043158,29359.0,29358.0,1.21901264]
[1609560018052,0.18043158,29359.0,29358.0,0.21901264]
[1609560021557,0.18043158,29359.0,29358.0,0.18079512]
[1609560024660,0.18043158,29359.0,29358.0,1.18079512]
[1609560025862,0.18043158,29359.0,29358.0,1.21906215]
[1609560026262,0.18043158,29359.0,29358.0,1.18079512]
[1609560026664,0.18043158,29359.0,29358.0,0.18079512]
[1609560032068,1.18043158,29359.0,29358.0,0.18079512]
[1609560033271,1.18477342,29359.0,29358.0,0.18079512]
[1609560034875,1.18518823,29359.0,29358.0,0.18079512]
[1609560036178,0.81908213,29350.0,29349.0,1.0]
[1609560036677,0.81908213,29350.0,29349.0,1.11163464]
[1609560036878,0.81908213,29350.0,29349.0,2.07224146]
[1609560044690,0.81701104,29350.0,29349.0,2.07224146]
[1609560047196,0.81701104,29350.0,29349.0,0.29206622]
[1609560048695,0.18043158,29353.0,29349.0,0.29206622]
[1609560049095,0.18043158,29353.0,29352.0,0.18043158]
[1609560049798,0.18043158,29353.0,29352.0,0.21904795]
[1609560055003,0.17836039,29353.0,29352.0,0.21904795]
[1609560062120,4.29476039,29353.0,29352.0,0.21904795]
[1609560065223,4.1164,29353.0,29352.0,0.03861637]
[1609560065625,4.1164,29353.0,29352.0,0.00036364]
[1609560065825,4.29683158,29353.0,29350.0,0.21904916]
[1609560066225,4.29683158,29353.0,29351.0,0.03861719]
[1609560068927,0.18043158,29353.0,29351.0,0.03861719]
[1609560071234,0.17836025,29353.0,29351.0,0.03861719]
[1609560085553,0.17628894,29353.0,29351.0,0.03861719]
[1609560090260,3.9225,29352.0,29351.0,0.03861719]
[1609560096970,3.92042871,29352.0,29351.0,0.03861719]
[1609560097371,3.92042871,29352.0,29351.0,1.03861719]
[1609560100874,3.92042871,29352.0,29351.0,0.03861719]
[1609560104480,3.92042871,29352.0,29351.0,1.03861719]
[1609560105683,3.92042871,29352.0,29351.0,0.03861719]
[1609560108688,3.91835749,29352.0,29351.0,0.03861719]
[1609560112995,0.17628894,29353.0,29351.0,0.03861719]
[1609560115401,5.04271104,29355.0,29351.0,0.03861719]
[1609560116500,0.18043158,29352.0,29351.0,0.03861719]
[1609560116700,0.76863158,29352.0,29351.0,0.03861719]
[1609560119003,0.5882,29352.0,29351.0,0.03861719]
[1609560120004,0.81701104,29355.0,29351.0,0.03861719]
[1609560120608,0.18043158,29352.0,29351.0,0.03861719]
[1609560123813,0.18043158,29352.0,29350.0,0.18043158]
[1609560124213,0.18043158,29352.0,29351.0,0.03853847]
[1609560124413,5.34673158,29352.0,29351.0,0.03853847]
[1609560128818,5.34673158,29352.0,29350.0,0.03854019]
[1609560129017,5.34673158,29352.0,29351.0,0.03853968]
[1609560129420,5.34673158,29352.0,29350.0,0.03854046]
[1609560129620,5.34673158,29352.0,29351.0,0.03854163]
[1609560130221,5.34673158,29352.0,29350.0,0.03854057]
[1609560130421,5.34673158,29352.0,29351.0,0.0385421]
[1609560131020,5.3471465,29352.0,29350.0,0.03854493]
[1609560131223,5.34507481,29352.0,29351.0,0.00036355]
[1609560131422,5.34507481,29352.0,29350.0,0.03854447]
[1609560131723,5.34900534,29352.0,29351.0,0.00036355]
[1609560131923,5.17064545,29352.0,29351.0,0.00036355]
[1609560132323,5.17064545,29352.0,29344.0,0.03854411]
[1609560132523,5.17106036,29352.0,29351.0,0.00036355]
[1609560132723,0.00041491,29351.0,29345.0,0.03854505]
[1609560133024,5.35149194,29352.0,29351.0,0.00036355]
[1609560133224,5.35107703,29352.0,29346.0,0.03854499]
[1609560133426,5.34673158,29352.0,29346.0,0.03854499]
[1609560133626,5.3471465,29352.0,29351.0,0.00036355]
[1609560133828,0.00041492,29351.0,29347.0,0.0385452]
[1609560134025,5.3471465,29352.0,29351.0,0.00036355]
[1609560134325,5.34673158,29352.0,29348.0,0.03854479]
[1609560134525,5.3471465,29352.0,29351.0,0.00036355]
[1609560134726,5.35149059,29352.0,29351.0,0.00036355]
[1609560134925,5.35149059,29352.0,29344.0,0.03854468]
[1609560135126,5.35107567,29352.0,29351.0,0.00036355]
[1609560135328,5.35107567,29352.0,29345.0,0.03854445]
[1609560135627,5.35107567,29352.0,29344.0,0.03854443]
[1609560135928,5.35107567,29352.0,29346.0,0.00036355]
[1609560136129,1.0,29351.0,29345.0,0.00036355]
[1609560136431,1.0,29351.0,29344.0,0.03854513]
[1609560136627,1.0,29351.0,29346.0,0.00036355]
[1609560136828,0.18043158,29347.0,29346.0,0.00036355]
[1609560137030,5.30373158,29347.0,29344.0,0.00036357]
[1609560137230,5.30373158,29347.0,29346.0,0.00036357]
[1609560137430,5.30373158,29347.0,29345.0,0.00036357]
[1609560137831,5.30373158,29347.0,29346.0,0.0003636]
[1609560138230,5.30414659,29347.0,29339.0,0.00036363]
[1609560138432,0.00434161,29346.0,29339.0,0.00036363]
[1609560138631,0.00434161,29346.0,29335.0,1.79886588]
[1609560138831,0.18043158,29336.0,29335.0,1.79886588]
[1609560139034,0.83843158,29336.0,29335.0,1.79886588]
[1609560139232,0.95266158,29336.0,29335.0,1.79886588]
[1609560139434,0.95266158,29336.0,29335.0,1.79922953]
[1609560140236,1.95266158,29336.0,29335.0,0.00036365]
[1609560140936,1.95266158,29336.0,29333.0,0.03855422]
[1609560141137,1.95266158,29336.0,29335.0,0.00036365]
[1609560141436,1.95266158,29336.0,29334.0,0.00036365]
[1609560141639,1.95266158,29336.0,29335.0,0.00036365]
[1609560141937,1.95266158,29336.0,29329.0,0.03855458]
[1609560142138,0.95266158,29336.0,29329.0,0.03855458]
[1609560142337,0.95266158,29336.0,29335.0,0.00036377]
[1609560142537,0.95266158,29336.0,29330.0,0.00036377]
[1609560142737,0.95266158,29336.0,29329.0,0.03819081]
[1609560142738,0.77223,29336.0,29335.0,0.00036377]
[1609560143037,0.77223,29336.0,29331.0,0.0003638]
[1609560143238,0.77223,29336.0,29335.0,0.0003638]
[1609560143538,0.77223,29336.0,29329.0,0.03819081]
[1609560143740,0.77223,29336.0,29335.0,0.0003638]
[1609560144039,0.77223,29336.0,29329.0,0.03855461]
[1609560144438,0.77223,29336.0,29335.0,0.0003638]
[1609560144639,0.77223,29336.0,29330.0,0.00036382]
[1609560144839,0.77223,29336.0,29335.0,0.00036382]
[1609560145041,0.95266158,29336.0,29331.0,0.00036382]
[1609560145442,0.95266158,29336.0,29327.0,0.00036382]
[1609560145641,0.95266158,29336.0,29332.0,0.00036382]
[1609560145841,0.95266158,29336.0,29328.0,0.00036382]
[1609560146043,1.95266158,29336.0,29328.0,0.00036382]
[1609560146242,1.95266158,29336.0,29333.0,0.00036382]
[1609560146440,1.95266158,29336.0,29329.0,0.00036382]
[1609560146642,1.95266158,29336.0,29326.0,5.1764]
[1609560146643,1.95266158,29336.0,29334.0,0.00036382]
[1609560146943,1.95266158,29336.0,29330.0,0.00036382]
[1609560147141,1.95266158,29336.0,29326.0,5.1764]
[1609560147441,1.95266158,29336.0,29327.0,0.00036382]
[1609560148043,0.95266158,29336.0,29327.0,0.00036382]
[1609560148243,1.95266158,29336.0,29327.0,0.00036382]
[1609560148945,0.18043158,29328.0,29327.0,0.00036382]
[1609560150147,4.85943158,29328.0,29327.0,0.00036382]
[1609560150347,4.85943158,29328.0,29326.0,0.0003638]
[1609560150547,4.85943158,29328.0,29327.0,0.0003638]
[1609560150947,4.85943158,29328.0,29326.0,0.0003638]
[1609560151148,4.85943158,29328.0,29327.0,0.0003638]
[1609560151749,4.85943158,29328.0,29326.0,0.0003638]
[1609560151951,4.85943158,29328.0,29325.0,0.18043158]
[1609560151952,4.85943158,29328.0,29327.0,0.0003638]
[1609560152552,4.85943158,29328.0,29326.0,0.0003638]
[1609560152750,4.85943158,29328.0,29327.0,0.0003638]
[1609560152951,4.85943158,29328.0,29326.0,0.0003638]
[1609560153351,4.85943158,29328.0,29327.0,0.0003638]
[1609560153750,4.85943158,29328.0,29326.0,0.0003638]
[1609560153950,4.85943158,29328.0,29327.0,0.0003638]
[1609560154151,0.18043158,29328.0,29327.0,0.0003638]
[1609560154351,0.18043158,29328.0,29326.0,6.0003638]
[1609560154552,0.18043158,29328.0,29327.0,0.0003638]
[1609560160061,0.18043158,29328.0,29326.0,0.18298902]
[1609560160361,0.18043158,29328.0,29325.0,0.18043158]
[1609560160862,0.18043158,29328.0,29326.0,0.00036378]
[1609560161764,0.17835919,29328.0,29326.0,0.00036378]
[1609560165572,0.17835919,29328.0,29326.0,0.03860944]
[1609560172083,0.17628673,29328.0,29326.0,0.03860944]
[1609560175688,5.3061,29327.0,29326.0,0.03860944]
[1609560177888,5.3061,29327.0,29326.0,0.00036378]
[1609560179793,5.3061,29327.0,29323.0,0.00036388]
[1609560179993,5.3061,29327.0,29322.0,0.18043158]
[1609560179994,5.3061,29327.0,29326.0,0.00036388]
[1609560180193,5.3061,29327.0,29324.0,0.00036388]
[1609560180495,5.3061,29327.0,29323.0,0.00036388]
[1609560180696,5.3061,29327.0,29325.0,0.00036388]
[1609560181095,5.3061,29327.0,29324.0,0.00036388]
[1609560181295,0.18043158,29325.0,29323.0,0.00036388]
[1609560181495,0.18043158,29325.0,29322.0,0.18043158]
[1609560181797,0.18043158,29325.0,29324.0,0.00036389]
[1609560182097,0.18043158,29325.0,29323.0,0.00036389]
[1609560182298,0.18043158,29325.0,29324.0,0.00036389]
[1609560182700,0.18043158,29325.0,29323.0,0.00036389]
[1609560182899,0.18043158,29325.0,29324.0,0.00036389]
[1609560183400,0.18043158,29325.0,29323.0,0.00036389]
[1609560183601,0.18043158,29325.0,29324.0,0.00036389]
[1609560184005,0.18043158,29325.0,29323.0,0.00036391]
[1609560184202,0.18043158,29325.0,29324.0,0.00036391]
[1609560185202,0.18043158,29325.0,29323.0,0.00036391]
[1609560185405,0.18043158,29325.0,29324.0,0.00036391]
[1609560186006,0.18043158,29325.0,29323.0,0.00036391]
[1609560186207,0.18043158,29325.0,29324.0,0.00036391]
[1609560186508,0.18043158,29325.0,29322.0,0.18043158]
[1609560186707,0.18043158,29325.0,29305.0,7.28110423]
[1609560186708,5.17853158,29325.0,29305.0,7.28110423]
[1609560186909,0.18043158,29325.0,29324.0,0.00036392]
[1609560187109,5.40363158,29325.0,29306.0,0.03862202]
[1609560187309,5.40363158,29325.0,29324.0,0.00036392]
[1609560187508,5.2232,29325.0,29308.0,0.18043158]
[1609560187911,5.2232,29325.0,29309.0,0.03826008]
[1609560187912,0.2951,29324.0,29309.0,0.03826008]
[1609560188109,0.2951,29324.0,29309.0,0.03862402]
[1609560188908,0.2951,29324.0,29309.0,0.00036394]
[1609560189108,0.2951,29324.0,29310.0,0.00036394]
[1609560189410,0.18043158,29311.0,29309.0,0.00036394]
[1609560189609,0.576,29310.0,29308.0,0.18043158]
[1609560190009,0.576,29310.0,29309.0,0.00036393]
[1609560192017,0.576,29310.0,29309.0,0.03862415]
[1609560192412,0.576,29310.0,29309.0,0.00036393]
[1609560192812,0.576,29310.0,29308.0,0.18043158]
[1609560193114,0.576,29310.0,29309.0,0.00036393]
[1609560194414,0.5739267,29310.0,29309.0,1.8100144]
[1609560194615,0.5739267,29310.0,29309.0,1.80965047]
[1609560195014,0.5739267,29310.0,29309.0,1.8100144]
[1609560195417,0.5739267,29310.0,29309.0,1.84827355]
[1609560196316,0.5739267,29310.0,29309.0,0.03862308]
[1609560196919,0.31608158,29311.0,29309.0,4.57932308]
[1609560197121,0.31608158,29311.0,29309.0,6.38897656]
[1609560197419,0.13565,29311.0,29309.0,6.38897656]
[1609560197621,0.18043158,29315.0,29310.0,0.03862298]
[1609560197821,0.2951,29324.0,29310.0,0.03862298]
[1609560198021,0.2951,29324.0,29316.0,4.2536]
[1609560198221,0.63860166,29330.0,29316.0,4.2536]
[1609560198421,0.5573,29327.0,29317.0,0.00036391]
[1609560198823,0.5573,29327.0,29317.0,0.03861982]
[1609560199222,0.5573,29327.0,29318.0,0.1015]
[1609560199423,0.5573,29327.0,29326.0,0.18043158]
[1609560200024,0.5573,29327.0,29326.0,0.18079542]
[1609560201429,0.73773158,29327.0,29326.0,0.18079542]
[1609560206232,0.73773158,29327.0,29326.0,0.00036384]
[1609560206633,0.18043158,29327.0,29326.0,0.00036384]
[1609560206833,4.1577,29323.0,29322.0,0.00036239]
[1609560207032,4.30399,29323.0,29321.0,1.80209932]
[1609560207232,4.30399,29323.0,29322.0,0.00036239]
[1609560207432,4.48442158,29323.0,29322.0,0.00036239]
[1609560208034,4.48442158,29323.0,29316.0,0.03794203]
[1609560208235,4.48442158,29323.0,29322.0,0.00036242]
[1609560208537,4.48442158,29323.0,29317.0,0.00036242]
[1609560208836,4.48442158,29323.0,29322.0,0.00036242]
[1609560209037,4.48442158,29323.0,29318.0,0.00036242]
[1609560209437,4.30399,29323.0,29322.0,0.00036242]
[1609560209637,4.30399,29323.0,29316.0,0.00036242]
[1609560209937,4.30399,29323.0,29322.0,0.00036242]
[1609560210139,4.30399,29323.0,29317.0,0.00036242]
[1609560210339,4.30399,29323.0,29322.0,0.00036242]
[1609560210738,4.30399,29323.0,29318.0,0.00036242]
[1609560210939,4.30399,29323.0,29316.0,0.00036242]
[1609560211142,4.30399,29323.0,29319.0,0.00036242]
[1609560211440,4.30399,29323.0,29316.0,0.00036242]
[1609560211641,0.18043158,29317.0,29315.0,0.18043158]
[1609560212043,0.18043158,29317.0,29316.0,0.00036243]
[1609560212244,0.32573158,29317.0,29316.0,0.00036243]
[1609560212944,0.32365833,29317.0,29316.0,0.00036243]
[1609560214645,0.32365833,29317.0,29316.0,0.10176243]
[1609560216648,0.32365833,29317.0,29316.0,0.1014]
[1609560216946,0.32365833,29317.0,29316.0,0.10176244]
[1609560219356,0.32365833,29317.0,29316.0,0.00036244]
[1609560222157,0.32365833,29317.0,29314.0,0.03794441]
[1609560222457,0.32365833,29317.0,29314.0,0.00036244]
[1609560222656,0.32365833,29317.0,29315.0,0.03794473]
[1609560222958,0.32365833,29317.0,29315.0,0.00036244]
[1609560223159,0.32365833,29317.0,29316.0,0.00036244]
[1609560223860,0.32365833,29317.0,29314.0,0.00036244]
[1609560224061,0.32365833,29317.0,29316.0,0.00036244]
[1609560224260,0.32365833,29317.0,29315.0,0.00036244]
[1609560224663,0.32365833,29317.0,29314.0,0.00036244]
[1609560224862,0.32365833,29317.0,29316.0,0.00036244]
[1609560225065,0.32365833,29317.0,29316.0,4.3342]
[1609560225262,0.32365833,29317.0,29316.0,4.33456244]
[1609560225863,0.32365833,29317.0,29316.0,4.55257747]
[1609560226962,0.32158502,29317.0,29316.0,4.55257747]
[1609560229464,0.32158502,29317.0,29316.0,0.21837747]
[1609560244995,0.3195117,29317.0,29316.0,0.21837747]
[1609560256713,0.31743833,29317.0,29316.0,0.21837747]
[1609560269934,0.31536495,29317.0,29316.0,0.21837747]
[1609560273640,4.98426495,29317.0,29316.0,0.03794589]
[1609560273839,4.98426495,29317.0,29313.0,0.03766963]
[1609560274040,4.98426495,29317.0,29316.0,0.03767152]
[1609560274441,4.98426495,29317.0,29314.0,0.03767184]
[1609560274641,4.98426495,29317.0,29313.0,0.03767223]
[1609560274841,4.98426495,29317.0,29315.0,0.03767244]
[1609560275142,0.31536495,29317.0,29314.0,0.03767241]
[1609560275343,0.31536495,29317.0,29316.0,0.00036186]
[1609560275542,5.24966495,29317.0,29316.0,0.03767254]
[1609560275743,5.24966495,29317.0,29315.0,0.03767475]
[1609560276046,5.24966495,29317.0,29311.0,0.03767411]
[1609560276242,5.0796,29317.0,29316.0,0.03767411]
[1609560276442,5.0796,29317.0,29312.0,0.03767413]
[1609560276642,5.0796,29317.0,29316.0,0.03767413]
[1609560276942,5.0796,29317.0,29313.0,0.03767391]
[1609560277243,5.0796,29317.0,29311.0,0.03767403]
[1609560277443,5.0796,29317.0,29314.0,0.03767413]
[1609560277744,5.0796,29317.0,29312.0,0.03767425]
[1609560278046,5.0796,29317.0,29315.0,0.03767427]
[1609560278246,0.18043158,29316.0,29313.0,0.03767446]
[1609560278648,0.18043158,29316.0,29310.0,5.2825]
[1609560278847,0.18043158,29316.0,29314.0,0.03767448]
[1609560279047,0.18043158,29316.0,29311.0,0.03767458]
[1609560280349,0.18043158,29312.0,29311.0,0.03767458]
[1609560281352,0.17835799,29312.0,29311.0,0.03767458]
[1609560283552,0.17835799,29312.0,29311.0,0.03731271]
[1609560283752,0.17835799,29312.0,29311.0,0.03767458]
[1609560284452,4.61565799,29312.0,29311.0,0.03767458]
[1609560284953,4.61565799,29312.0,29309.0,0.03767556]
[1609560285153,4.61565799,29312.0,29311.0,0.03767523]
[1609560285353,4.61565799,29312.0,29310.0,0.03767517]
[1609560285553,4.61565799,29312.0,29311.0,0.03767345]
[1609560286154,4.61565799,29312.0,29309.0,0.03767343]
[1609560286354,4.61565799,29312.0,29311.0,0.03767343]
[1609560286656,4.61565799,29312.0,29310.0,0.03767345]
[1609560286856,4.61565799,29312.0,29311.0,0.03767349]
[1609560287055,0.17835799,29312.0,29311.0,0.03767349]
[1609560287457,0.17835799,29312.0,29309.0,0.03767352]
[1609560287656,0.17835799,29312.0,29311.0,0.03767357]
[1609560287956,0.17835799,29312.0,29310.0,0.0376736]
[1609560288156,0.17835799,29312.0,29311.0,0.03731173]
[1609560288357,0.17835799,29312.0,29311.0,0.0376736]
[1609560288759,0.17835799,29312.0,29310.0,0.03767365]
[1609560288959,0.17835799,29312.0,29311.0,0.03767362]
[1609560289559,0.17835799,29312.0,29310.0,0.03767352]
[1609560289759,0.17835799,29312.0,29311.0,0.03767352]